lending/lending_fUSD_20240621
["ID","MTS","AMOUNT","RATE_DAILY","PERIOD"]
[330073418,1718987861816,-500.0,0.00022739,4]
[330073419,1718987861854,-973.5,0.00022739,4]
[330073420,1718987861894,-752.38,0.00022739,4]
[330073421,1718987861931,-500.0,0.00022739,4]
[330073422,1718987861969,-888.11,0.00022739,4]
[330073423,1718987862008,-500.0,0.00022739,4]
[330073424,1718987862048,-500.0,0.00022739,4]
[330073425,1718987862087,-500.0,0.00022739,4]
[330073426,1718987862125,-500.0,0.00022739,4]
[330073427,1718987862163,-551.05,0.00022739,4]
[330073428,1718987862201,-860.79,0.00022739,4]
[330073429,1718987862238,-500.0,0.00022739,4]
[330073430,1718987862275,-938.68,0.00022739,4]
[330073431,1718987862311,-586.07,0.00022739,4]
[330073432,1718987862349,-500.0,0.00022739,4]
[330073433,1718987862706,-500.0,0.00022739,4]
[330073434,1718987862742,-500.0,0.00022739,4]
[330073435,1718987862777,-500.0,0.00022739,4]
[330073436,1718987862814,-500.0,0.00022739,4]
[330073437,1718987862851,-516.69,0.00022739,4]
[330073438,1718987862893,-500.0,0.00022739,4]
[330073439,1718987862929,-500.0,0.00022739,4]
[330073440,1718987862964,-625.8,0.00022739,7]
[330073441,1718987862999,-500.0,0.00022739,4]
[330073442,1718987863036,-584.08,0.00022739,4]
[330073443,1718987863071,-704.21,0.00022739,4]
[330073444,1718987863105,-895.6,0.00022739,4]
[330073445,1718987863140,-514.83,0.00022739,4]
[330073446,1718987863175,-500.0,0.00022739,4]
[330073447,1718987863211,-814.59,0.00022739,4]
[330073448,1718987863247,-500.0,0.00022739,4]
[330073449,1718987863284,-500.0,0.00022739,4]
[330073450,1718987863321,-500.0,0.00022739,4]
[330073451,1718987863357,-500.0,0.00022739,4]
[330073452,1718987863394,-500.0,0.00022739,4]
[330073453,1718987863433,-904.05,0.00022739,4]
[330073454,1718987863474,-500.0,0.00022739,4]
[330073455,1718987863511,-714.95,0.00022739,4]
[330073456,1718987863550,-956.81,0.00022739,4]
[330073457,1718987863585,-992.0,0.00022739,4]
[330073458,1718987863621,-580.05,0.00022739,4]
[330073459,1718987863657,-500.0,0.00022739,4]
[330073460,1718987863694,-635.23,0.00022739,4]
[330073461,1718987863730,-500.0,0.00022739,4]
[330073462,1718987863767,-500.0,0.00022739,4]
[330073463,1718987863809,-689.03,0.00022739,4]
[330073464,1718987863845,-500.0,0.00022739,4]
[330073465,1718987863885,-716.36,0.00022739,4]
[330073466,1718987863925,-637.94,0.00022739,4]
[330073467,1718987863964,-575.25,0.00022739,4]
[330073468,1718987864002,-500.0,0.00022739,4]
[330073469,1718987864036,-500.0,0.00022739,4]
[330073470,1718987864070,-500.0,0.00022739,4]
[330073471,1718987864106,-500.0,0.00022739,4]
[330073472,1718987864147,-500.0,0.00022739,4]
[330073473,1718987864184,-500.0,0.00022739,4]
[330073474,1718987864225,-689.5,0.00022739,4]
[330073475,1718987864263,-500.0,0.00022739,4]
[330073476,1718987864302,-718.18,0.00022739,4]
[330073477,1718987864338,-772.11,0.00022739,4]
[330073478,1718987864378,-815.47,0.00022739,4]
[330073479,1718987864417,-536.82158814,0.00022739,4]
[330073480,1718987864455,-675.31,0.00022739,4]
[330073481,1718987864492,-558.25,0.00022739,4]
[330073482,1718987864530,-602.36,0.00022739,4]
[330073483,1718987864565,-500.0,0.00022739,4]
[330073484,1718987864602,-753.43,0.00022739,4]
[330073485,1718987864638,-500.0,0.00022739,4]
[330073486,1718987864674,-500.0,0.00022739,4]
[330073487,1718987864709,-637.49,0.00022739,4]
[330073488,1718987864746,-827.71,0.00022739,4]
[330073489,1718987864783,-500.0,0.00022739,4]
[330073490,1718987864819,-500.0,0.00022739,4]
[330073491,1718987864855,-500.0,0.00022739,4]
[330073492,1718987864891,-500.0,0.00022739,4]
[330073493,1718987864926,-699.3,0.00022739,4]
[330073494,1718987864963,-500.0,0.00022739,4]
[330073495,1718987865001,-1715.38,0.00022739,4]
[330073496,1718987865036,-557.11,0.00022739,4]
[330073497,1718987865070,-706.5,0.00022739,4]
[330073498,1718987865106,-500.0,0.00022739,4]
[330073499,1718987865142,-500.0,0.00022739,4]
[330073500,1718987865180,-701.65,0.00022739,4]
[330073501,1718987865214,-567.38,0.00022739,4]
[330073502,1718987865252,-869.42,0.00022739,4]
[330073503,1718987865290,-1206.32,0.00022739,4]
[330073504,1718987865329,-1669.99,0.00022739,4]
[330073505,1718987865365,-501.04615248,0.00022739,4]
[330073506,1718987865401,-1238.7,0.00022739,4]
[330073507,1718987865436,-500.0,0.00022739,4]
[330073508,1718987865475,-1127.42,0.00022739,4]
[330073509,1718987865511,-525.73,0.00022739,4]
[330073510,1718987865549,-500.0,0.00022739,4]
[330073511,1718987865667,-1196.33,0.00022739,4]
[330073512,1718987865704,-500.0,0.00022739,4]
[330073513,1718987865739,-973.63,0.00022739,4]
[330073514,1718987865776,-500.0,0.00022739,4]
[330073515,1718987865815,-947.43,0.00022739,4]
[330073516,1718987865853,-500.0,0.00022739,4]
[330073517,1718987865889,-1278.77,0.00022739,4]
[330073518,1718987865926,-173.09845257,0.00022739,4]
[330073519,1718987865961,-194.98429513,0.00022739,4]
[330073520,1718987865996,-745.87,0.00022739,4]
[330073521,1718987866031,-500.0,0.00022739,4]
[330073522,1718987866066,-1938.16,0.00022739,4]
[330073523,1718987866100,-500.0,0.00022739,4]
[330073524,1718987866135,-229.17198045,0.00022739,4]
[330073525,1718987866173,-500.0,0.00022739,4]
[330073526,1718987866209,-500.0,0.00022739,4]
[330073527,1718987866244,-500.0,0.00022739,4]
[330073528,1718987866279,-500.0,0.00022739,4]
[330073529,1718987866313,-500.0,0.00022739,4]
[330073530,1718987866347,-1658.31,0.00022739,4]
[330073531,1718987866380,-500.0,0.00022739,4]
[330073532,1718987866415,-1101.45,0.00022739,4]
[330073533,1718987866454,-500.0,0.00022739,4]
[330073534,1718987866490,-1509.06,0.00022739,4]
[330073535,1718987866529,-500.0,0.00022739,4]
[330073536,1718987866564,-556.62,0.00022739,4]
[330073537,1718987866600,-500.0,0.00022739,2]
[330073538,1718987866637,-500.0,0.00022739,4]
[330073539,1718987866673,-500.0,0.00022739,4]
[330073540,1718987866708,-1598.19,0.00022739,4]
[330073541,1718987866743,-500.0,0.00022739,4]
[330073542,1718987866782,-500.0,0.00022739,4]
[330073543,1718987866819,-801.67,0.00022739,4]
[330073544,1718987866856,-507.47,0.00022739,4]
[330073545,1718987866892,-500.0,0.00022739,4]
[330073546,1718987866928,-500.0,0.00022739,4]
[330073547,1718987866962,-862.95,0.00022739,4]
[330073548,1718987867000,-1605.68,0.00022739,4]
[330073549,1718987867036,-500.0,0.00022739,4]
[330073550,1718987867070,-1301.32,0.00022739,4]
[330073551,1718987867105,-500.0,0.00022739,4]
[330073552,1718987867141,-500.0,0.00022739,4]
[330073553,1718987867177,-517.8,0.00022739,4]
[330073554,1718987867214,-500.0,0.00022739,4]
[330073555,1718987867250,-763.27,0.00022739,4]
[330073556,1718987867287,-710.53,0.00022739,4]
[330073557,1718987867321,-778.19,0.00022739,4]
[330073558,1718987867354,-500.0,0.00022739,4]
[330073559,1718987867389,-863.86,0.00022739,4]
[330073560,1718987867425,-1335.58,0.00022739,4]
[330073561,1718987867461,-500.0,0.00022739,4]
[330073562,1718987867498,-581.67,0.00022739,4]
[330073563,1718987867535,-500.0,0.00022739,4]
[330073564,1718987867572,-500.0,0.00022739,4]
[330073565,1718987867607,-1560.1,0.00022739,4]
[330073566,1718987867649,-727.57,0.00022739,4]
[330073567,1718987867686,-500.0,0.00022739,4]
[330073568,1718987867724,-500.0,0.00022739,4]
[330073569,1718987867760,-500.0,0.00022739,4]
[330073570,1718987867802,-500.0,0.00022739,4]
[330073571,1718987867836,-1029.0,0.00022739,4]
[330073572,1718987867871,-500.0,0.00022739,4]
[330073573,1718987867907,-1212.23,0.00022739,4]
[330073574,1718987867943,-1455.92,0.00022739,4]
[330073575,1718987867978,-500.0,0.00022739,4]
[330073576,1718987868012,-650.88,0.00022739,4]
[330073577,1718987868047,-732.66,0.00022739,4]
[330073578,1718987868083,-1205.11,0.00022739,4]
[330073579,1718987868118,-500.0,0.00022739,4]
[330073580,1718987868154,-2639.11,0.00022739,4]
[330073581,1718987868190,-938.33,0.00022739,4]
[330073582,1718987868226,-762.84,0.00022739,4]
[330073583,1718987868263,-2963.99,0.00022739,4]
[330073584,1718987868300,-500.0,0.00022739,4]
[330073585,1718987868335,-500.0,0.00022739,4]
[330073586,1718987868370,-522.62,0.00022739,4]
[330073587,1718987868405,-579.79005184,0.00022739,4]
[330073588,1718987868440,-630.61,0.00022739,4]
[330073589,1718987868473,-684.88,0.00022739,4]
[330073590,1718987868510,-500.0,0.00022739,2]
[330073591,1718987868546,-154.72534544,0.00022739,4]
[330073592,1718987868584,-500.0,0.00022739,4]
[330073593,1718987868622,-500.0,0.00022739,4]
[330073594,1718987868657,-1313.22,0.00022739,4]
[330073595,1718987868692,-500.0,0.00022739,4]
[330073596,1718987868728,-839.63,0.00022739,4]
[330073597,1718987868763,-1948.35,0.00022739,4]
[330073598,1718987868800,-1226.54,0.00022739,4]
[330073599,1718987868836,-500.0,0.00022739,2]
[330073600,1718987868871,-729.52,0.00022739,4]
[330073601,1718987868912,-638.08,0.00022739,4]
[330073602,1718987868949,-500.0,0.00022739,4]
[330073603,1718987868986,-500.0,0.00022739,4]
[330073604,1718987869027,-500.0,0.00022739,4]
[330073605,1718987869063,-762.39,0.00022739,4]
[330073606,1718987869099,-500.0,0.00022739,4]
[330073607,1718987869135,-500.0,0.00022739,4]
[330073608,1718987869171,-573.8,0.00022739,4]
[330073609,1718987869210,-1015.26,0.00022739,4]
[330073610,1718987869251,-1113.03,0.00022739,4]
[330073611,1718987869288,-981.66,0.00022739,4]
[330073612,1718987869325,-500.0,0.00022739,4]
[330073614,1718987869361,-584.78,0.00022739,4]
[330073615,1718987869398,-649.12,0.00022739,4]
[330073616,1718987869436,-500.0,0.00022739,4]
[330073617,1718987869474,-1974.34,0.00022739,4]
[330073618,1718987869510,-2501.57,0.00022739,4]
[330073619,1718987869548,-500.0,0.00022739,4]
[330073620,1718987869586,-951.7,0.00022739,4]
[330073621,1718987869622,-1390.54,0.00022739,4]
[330073622,1718987869656,-500.0,0.00022739,2]
[330073623,1718987869692,-556.08,0.00022739,4]
[330073624,1718987869729,-657.28,0.00022739,4]
[330073625,1718987869764,-500.0,0.00022739,4]
[330073626,1718987869802,-932.12,0.00022739,4]
[330073627,1718987869837,-1642.89,0.00022739,4]
[330073628,1718987869871,-500.0,0.00022739,4]
[330073629,1718987869905,-500.0,0.00022739,4]
[330073630,1718987869941,-208.81425067,0.00022739,4]
[330073631,1718987870115,-690.65,0.00022739,4]
[330073632,1718987870153,-500.0,0.00022739,4]
[330073633,1718987870191,-1097.2,0.00022739,4]
[330073634,1718987870228,-500.0,0.00022739,4]
[330073635,1718987870265,-500.0,0.00022739,4]
[330073636,1718987870304,-500.0,0.00022739,4]
[330073637,1718987870341,-500.0,0.00022739,4]
[330073638,1718987870378,-2084.39,0.00022739,4]
[330073639,1718987870416,-500.0,0.00022739,4]
[330073640,1718987870463,-2933.09,0.00022739,4]
[330073641,1718987870506,-500.0,0.00022739,4]
[330073642,1718987870544,-541.54380686,0.00022739,4]
[330073643,1718987870580,-938.95,0.00022739,4]
[330073644,1718987870618,-886.36,0.00022739,4]
[330073645,1718987870657,-1902.16,0.00022739,4]
[330073646,1718987870695,-1069.59,0.00022739,4]
[330073647,1718987870734,-500.0,0.00022739,4]
[330073648,1718987870771,-500.0,0.00022739,4]
[330073649,1718987870809,-500.0,0.00022739,4]
[330073650,1718987870847,-500.0,0.00022739,4]
[330073651,1718987870883,-811.91,0.00022739,4]
[330073652,1718987870920,-880.22,0.00022739,4]
[330073653,1718987870956,-969.18,0.00022739,4]
[330073654,1718987870994,-500.0,0.00022739,4]
[330073655,1718987871034,-218.26834896,0.00022739,4]
[330073656,1718987871069,-500.0,0.00022739,4]
[330073657,1718987871104,-1726.57,0.00022739,4]
[330073658,1718987871141,-2158.25,0.00022739,4]
[330073659,1718987871173,-500.0,0.00022739,4]
[330073660,1718987871208,-993.96,0.00022739,4]
[330073661,1718987871242,-500.0,0.00022739,4]
[330073662,1718987871278,-500.0,0.00022739,4]
[330073663,1718987871311,-500.0,0.00022739,2]
[330073664,1718987871347,-500.0,0.00022739,4]
[330073665,1718987871382,-1354.34,0.00022739,4]
[330073666,1718987871418,-686.57,0.00022739,4]
[330073667,1718987871458,-560.77,0.00022739,4]
[330073668,1718987871498,-1949.64,0.00022739,4]
[330073669,1718987871538,-500.0,0.00022739,4]
[330073670,1718987871573,-500.0,0.00022739,4]
[330073671,1718987871609,-1127.43,0.00022739,4]
[330073672,1718987871646,-2371.42,0.00022739,4]
[330073673,1718987871683,-235.04,0.00022739,4]
[330073674,1718987871721,-500.0,0.00022739,4]
[330073675,1718987871757,-500.0,0.00022739,4]
[330073676,1718987871793,-891.83,0.00022739,4]
[330073677,1718987871830,-1229.62,0.00022739,4]
[330073678,1718987871868,-500.0,0.00022739,4]
[330073679,1718987871905,-1051.5,0.00022739,4]
[330073680,1718987871941,-1999.75,0.00022739,4]
[330073681,1718987871977,-157.78913918,0.00022739,4]
[330073682,1718987872014,-1084.42,0.00022739,4]
[330073683,1718987872058,-500.0,0.00022739,4]
[330073684,1718987872098,-500.0,0.00022739,4]
[330073685,1718987872137,-788.55,0.00022739,4]
[330073686,1718987872176,-842.2,0.00022739,4]
[330073687,1718987872216,-1589.92,0.00022739,4]
[330073688,1718987872255,-500.0,0.00022739,4]
[330073689,1718987872291,-720.26,0.00022739,4]
[330073690,1718987872329,-1802.15,0.00022739,4]
[330073691,1718987872367,-797.01,0.00022739,4]
[330073692,1718987872406,-1538.77,0.00022739,4]
[330073693,1718987872445,-636.56,0.00022739,4]
[330073694,1718987872482,-500.0,0.00022739,4]
[330073695,1718987872521,-500.0,0.00022739,4]
[330073696,1718987872562,-362.79439818,0.00022739,4]
[330073697,1718987872599,-500.0,0.00022739,4]
[330073698,1718987872638,-543.79,0.00022739,4]
[330073699,1718987872675,-1101.59,0.00022739,4]
[330073700,1718987872714,-1937.65,0.00022739,4]
[330073701,1718987872752,-500.0,0.00022739,4]
[330073702,1718987872792,-570.2,0.00022739,4]
[330073703,1718987872831,-412.11333348,0.00022739,4]
[330073704,1718987872870,-1235.33,0.00022739,4]
[330073705,1718987872907,-500.0,0.00022739,4]
[330073706,1718987872943,-500.0,0.00022739,4]
[330073707,1718987872983,-212.66679152,0.00022739,4]
[330073708,1718987873025,-745.48,0.00022739,4]
[330073709,1718987873069,-500.0,0.00022739,4]
[330073710,1718987873106,-1276.04,0.00022739,4]
[330073711,1718987873144,-500.0,0.00022739,4]
[330073712,1718987873182,-1136.44,0.00022739,4]
[330073713,1718987873219,-500.0,0.00022739,4]
[330073714,1718987873260,-734.82,0.00022739,4]
[330073715,1718987873299,-871.92,0.00022739,4]
[330073716,1718987873338,-500.0,0.00022739,4]
[330073717,1718987873375,-500.0,0.00022739,4]
[330073718,1718987873412,-1599.22,0.00022739,4]
[330073719,1718987873457,-583.98,0.00022739,4]
[330073720,1718987873498,-500.0,0.00022739,4]
[330073721,1718987873539,-500.0,0.00022739,4]
[330073722,1718987873576,-670.21,0.00022739,4]
[330073723,1718987873615,-1774.01,0.00022739,4]
[330073724,1718987874001,-500.0,0.00022739,4]
[330073725,1718987874044,-2065.38,0.00022739,4]
[330073726,1718987874085,-518.37,0.00022739,4]
[330073727,1718987874123,-500.0,0.00022739,4]
[330073728,1718987874164,-500.0,0.00022739,4]
[330073729,1718987874203,-500.0,0.00022739,4]
[330073730,1718987874250,-1503.02,0.00022739,4]
[330073731,1718987874290,-752.27,0.00022739,4]
[330073732,1718987874329,-500.0,0.00022739,4]
[330073733,1718987874369,-1961.51,0.00022739,4]
[330073734,1718987874408,-500.0,0.00022739,4]
[330073735,1718987874451,-500.0,0.00022739,4]
[330073736,1718987874490,-849.14,0.00022739,4]
[330073737,1718987874533,-500.0,0.00022739,4]
[330073738,1718987874572,-500.0,0.00022739,4]
[330073739,1718987874612,-1399.75,0.00022739,4]
[330073740,1718987874652,-834.46,0.00022739,4]
[330073741,1718987874693,-1482.79,0.00022739,4]
[330073742,1718987874732,-500.0,0.00022739,4]
[330073743,1718987874770,-882.56,0.00022739,4]
[330073744,1718987874814,-500.0,0.00022739,4]
[330073745,1718987874857,-590.18,0.00022739,4]
[330073746,1718987874898,-226.39,0.00022739,4]
[330073747,1718987874941,-5000.0,0.00022739,4]
[330073748,1718987874984,-844.18,0.00022739,4]
[330073749,1718987875027,-551.76,0.00022739,4]
[330073750,1718987875075,-1617.02,0.00022739,4]
[330073751,1718987875115,-1228.5,0.00022739,4]
[330073752,1718987875155,-1857.89,0.00022739,4]
[330073753,1718987875194,-500.0,0.00022739,4]
[330073754,1718987875234,-500.0,0.00022739,4]
[330073755,1718987875272,-500.0,0.00022739,4]
[330073756,1718987875314,-895.12,0.00022739,4]
[330073757,1718987875352,-500.0,0.00022739,4]
[330073758,1718987875394,-500.0,0.00022739,4]
[330073759,1718987875436,-250.0,0.00022739,4]
[330073760,1718987875474,-500.0,0.00022739,4]
[330073761,1718987875514,-1826.36,0.00022739,4]
[330073762,1718987875561,-500.0,0.00022739,4]
[330073763,1718987875604,-1875.93,0.00022739,4]
[330073764,1718987875646,-500.0,0.00022739,4]
[330073765,1718987875687,-661.37,0.00022739,4]
[330073766,1718987875729,-591.12,0.00022739,4]
[330073767,1718987875768,-1493.29,0.00022739,4]
[330073768,1718987875812,-500.0,0.00022739,4]
[330073769,1718987875849,-500.0,0.00022739,4]
[330073770,1718987875893,-500.0,0.00022739,4]
[330073771,1718987875935,-500.0,0.00022739,4]
[330073772,1718987875973,-500.0,0.00022739,4]
[330073773,1718987876013,-1478.18,0.00022739,4]
[330073774,1718987876050,-938.34,0.00022739,4]
[330073775,1718987876087,-503.92,0.00022739,4]
[330073776,1718987876123,-1367.97,0.00022739,4]
[330073777,1718987876160,-630.73,0.00022739,4]
[330073778,1718987876199,-500.0,0.00022739,4]
[330073779,1718987876238,-500.0,0.00022739,4]
[330073780,1718987876278,-500.0,0.00022739,4]
[330073781,1718987876318,-500.0,0.00022739,4]
[330073782,1718987876356,-762.85,0.00022739,4]
[330073783,1718987876395,-617.63,0.00022739,4]
[330073784,1718987876434,-519.63,0.00022739,4]
[330073785,1718987876474,-1335.29,0.00022739,4]
[330073786,1718987876510,-500.0,0.00022739,4]
[330073787,1718987876548,-500.0,0.00022739,4]
[330073788,1718987876586,-500.0,0.00022739,4]
[330073789,1718987876623,-500.0,0.00022739,4]
[330073790,1718987876661,-583.36394651,0.00022739,4]
[330073791,1718987876700,-546.29,0.00022739,4]
[330073792,1718987876738,-500.0,0.00022739,4]
[330073793,1718987876778,-745.75,0.00022739,4]
[330073794,1718987876818,-583.87,0.00022739,4]
[330073795,1718987876855,-500.0,0.00022739,4]
[330073796,1718987876893,-532.4,0.00022739,4]
[330073797,1718987876932,-500.0,0.00022739,7]
[330073798,1718987876968,-624.75,0.00022739,4]
[330073799,1718987877005,-500.0,0.00022739,4]
[330073800,1718987877043,-500.0,0.00022739,4]
[330073801,1718987877081,-500.0,0.00022739,4]
[330073802,1718987877183,-4186.41,0.00022739,4]
[330073803,1718987877222,-1246.0,0.00022739,4]
[330073804,1718987877263,-621.05,0.00022739,4]
[330073805,1718987877302,-1273.36,0.00022739,4]
[330073806,1718987877339,-500.0,0.00022739,4]
[330073807,1718987877375,-500.0,0.00022739,4]
[330073808,1718987877411,-500.0,0.00022739,4]
[330073809,1718987877448,-500.0,0.00022739,4]
[330073810,1718987877487,-500.0,0.00022739,4]
[330073811,1718987877525,-500.0,0.00022739,4]
[330073812,1718987877564,-1725.96,0.00022739,4]
[330073813,1718987877605,-17827.09,0.00022739,4]
[330073814,1718987877643,-531.64,0.00022739,4]
[330073815,1718987877680,-2753.08,0.00022739,4]
[330073816,1718987877718,-1441.65,0.00022739,4]
[330073817,1718987877756,-500.0,0.00022739,4]
[330073818,1718987877793,-500.0,0.00022739,4]
[330073819,1718987877831,-1064.8,0.00022739,4]
[330073820,1718987877872,-1549.35,0.00022739,4]
[330073821,1718987877911,-555.38214558,0.00022739,4]
[330073822,1718987877948,-5366.7,0.00022739,4]
[330073823,1718987877985,-1477.84,0.00022739,4]
[330073824,1718987878028,-500.0,0.00022739,4]
[330073825,1718987878070,-500.0,0.00022739,4]
[330073826,1718987878106,-500.0,0.00022739,4]
[330073827,1718987878144,-2285.83,0.00022739,4]
[330073828,1718987878181,-570.68,0.00022739,4]
[330073829,1718987878220,-2591.26,0.00022739,4]
[330073830,1718987878259,-562.90306503,0.00022739,4]
[330073831,1718987878299,-1454.1,0.00022739,4]
[330073832,1718987878338,-500.0,0.00022739,4]
[330073833,1718987878376,-500.0,0.00022739,4]
[330073834,1718987878414,-537.9,0.00022739,4]
[330073835,1718987878453,-500.0,0.00022739,4]
[330073836,1718987878493,-2873.53,0.00022739,4]
[330073837,1718987878538,-1761.28,0.00022739,4]
[330073838,1718987878574,-500.0,0.00022739,4]
[330073839,1718987878612,-1322.52,0.00022739,4]
[330073840,1718987878651,-21098.4,0.00022739,4]
[330073841,1718987878688,-500.0,0.00022739,4]
[330073842,1718987878725,-500.0,0.00022739,4]
[330073843,1718987878761,-1942.16,0.00022739,4]
[330073844,1718987878796,-4482.26,0.00022739,4]
[330073845,1718987878831,-500.0,0.00022739,4]
[330073846,1718987878868,-500.0,0.00022739,4]
[330073847,1718987878904,-2767.62,0.00022739,4]
[330073848,1718987878941,-3347.29,0.00022739,4]
[330073849,1718987878978,-500.0,0.00022739,4]
[330073850,1718987879019,-501.37,0.00022739,4]
[330073851,1718987879055,-2292.45,0.00022739,4]
[330073852,1718987879091,-500.0,0.00022739,4]
[330073853,1718987879138,-1584.6,0.00022739,4]
[330073854,1718987879174,-13106.47,0.00022739,4]
[330073855,1718987879212,-500.0,0.00022739,4]
[330073856,1718987879249,-2656.4,0.00022739,4]
[330073857,1718987879285,-500.0,0.00022739,4]
[330073858,1718987879321,-601.74,0.00022739,4]
[330073859,1718987879357,-664.44,0.00022739,4]
[330073860,1718987879395,-500.0,0.00022739,4]
[330073861,1718987879434,-1030.33,0.00022739,4]
[330073862,1718987879473,-661.93,0.00022739,4]
[330073863,1718987879510,-1858.78,0.00022739,4]
[330073864,1718987879546,-495.41939745,0.00022739,4]
[330073865,1718987879583,-1409.18,0.00022739,4]
[330073866,1718987879622,-500.0,0.00022739,4]
[330073867,1718987879660,-500.0,0.00022739,4]
[330073868,1718987879697,-4698.22,0.00022739,4]
[330073869,1718987879734,-1088.39,0.00022739,4]
[330073870,1718987879772,-6663.27,0.00022739,4]
[330073871,1718987879812,-1160.31,0.00022739,4]
[330073872,1718987879847,-749.71,0.00022739,4]
[330073873,1718987879887,-1057.48,0.00022739,4]
[330073874,1718987879924,-1057.98,0.00022739,4]
[330073875,1718987879960,-599.54,0.00022739,4]
[330073876,1718987879997,-623.34796085,0.00022739,4]
[330073877,1718987880043,-1394.54,0.00022739,4]
[330073878,1718987880082,-1822.88,0.00022739,4]
[330073879,1718987880123,-15475.57,0.00022739,4]
[330073880,1718987880162,-2717.86,0.00022739,4]
[330073881,1718987880203,-767.99,0.00022739,4]
[330073882,1718987880240,-500.0,0.00022739,4]
[330073883,1718987880277,-603.55,0.00022739,4]
[330073884,1718987880320,-966.33,0.00022739,4]
[330073885,1718987880358,-1515.42,0.00022739,4]
[330073886,1718987880396,-500.0,0.00022739,4]
[330073887,1718987880436,-48187.15,0.00022739,4]
[330073888,1718987880476,-1995.59,0.00022739,4]
[330073889,1718987880514,-538.71,0.00022739,4]
[330073890,1718987880551,-7346.07,0.00022739,4]
[330073891,1718987880589,-716.99,0.00022739,4]
[330073892,1718987880628,-2461.62,0.00022739,4]
[330073893,1718987880667,-1008.39,0.00022739,4]
[330073894,1718987880705,-262.25840642,0.00022739,4]
[330073895,1718987880745,-500.0,0.00022739,4]
[330073896,1718987880787,-781.87,0.00022739,4]
[330073897,1718987880826,-847.06,0.00022739,4]
[330073898,1718987880864,-2142.11,0.00022739,4]
[330073899,1718987880903,-500.0,0.00022739,4]
[330073900,1718987880942,-500.0,0.00022739,4]
[330073901,1718987880983,-2460.94,0.00022739,4]
[330073902,1718987881021,-754.56,0.00022739,4]
[330073903,1718987881064,-500.0,0.00022739,4]
[330073904,1718987881105,-500.0,0.00022739,4]
[330073905,1718987881143,-500.0,0.00022739,4]
[330073906,1718987881181,-740.98,0.00022739,4]
[330073907,1718987881219,-500.0,0.00022739,4]
[330073908,1718987881258,-2384.29,0.00022739,4]
[330073909,1718987881297,-15952.05,0.00022739,4]
[330073910,1718987881336,-500.0,0.00022739,4]
[330073911,1718987881377,-1250.85,0.00022739,4]
[330073912,1718987881417,-500.0,0.00022739,4]
[330073913,1718987881460,-500.0,0.00022739,4]
[330073914,1718987881501,-500.0,0.00022739,4]
[330073915,1718987881548,-500.0,0.00022739,4]
[330073916,1718987881587,-455.45,0.00022739,4]
[330073917,1718987881626,-500.0,0.00022739,4]
[330073918,1718987881666,-500.0,0.00022739,4]